fUSD/lending_fUSD_20250506
["ID","MTS","AMOUNT","RATE_DAILY","PERIOD"]
[360113709,1746553847514,-450.0,0.00019999,2]
[360113711,1746553847524,-450.0,0.00019999,2]
[360113714,1746553847534,-450.0,0.00019999,2]
[360113715,1746553847544,-450.0,0.00019999,2]
[360113718,1746553847553,-450.0,0.00019999,2]
[360113720,1746553847563,-450.0,0.00019999,2]
[360113722,1746553847573,-450.0,0.00019999,2]
[360113724,1746553847582,-450.0,0.00019999,2]
[360113726,1746553847592,-450.0,0.00019999,2]
[360113727,1746553847601,-450.0,0.00019999,2]
[360113729,1746553847611,-450.0,0.00019999,2]
[360113731,1746553847621,-450.0,0.00019999,2]
[360113733,1746553847631,-450.0,0.00019999,2]
[360113735,1746553847640,-450.0,0.00019999,2]
[360113737,1746553847650,-450.0,0.00019999,2]
[360113740,1746553847660,-450.0,0.00019999,2]
[360113742,1746553847670,-567.50785429,0.00019999,2]
[360113744,1746553847679,-450.0,0.00019999,2]
[360113745,1746553847689,-450.0,0.00019999,2]
[360113748,1746553847699,-339.83456223,0.00019999,2]
[360113750,1746553847710,-536.22631935,0.00019999,2]
[360113752,1746553847718,-450.0,0.00019999,2]
[360113754,1746553847728,-450.0,0.00019999,2]
[360113755,1746553847737,-450.0,0.00019999,2]
[360113758,1746553847748,-399.7,0.00019999,2]
[360113760,1746553847758,-450.0,0.00019999,2]
[360113762,1746553847767,-450.0,0.00019999,2]
[360113764,1746553847777,-532.03,0.00019999,2]
[360113766,1746553847787,-450.0,0.00019999,2]
[360113768,1746553847797,-450.0,0.00019999,2]
[360113769,1746553847807,-450.0,0.00019999,2]
[360113771,1746553847816,-506.9,0.00019999,2]
[360113773,1746553847825,-330.0,0.00019999,2]
[360113775,1746553847835,-450.0,0.00019999,2]
[360113777,1746553847844,-450.0,0.00019999,2]
[360113779,1746553847854,-450.0,0.00019999,2]
[360113781,1746553847863,-480.80937967,0.00019999,2]
[360113783,1746553847873,-450.0,0.00019999,2]
[360113785,1746553847882,-450.0,0.00019999,2]
[360113787,1746553847891,-450.0,0.00019999,2]
[360113789,1746553847901,-486.25491684,0.00019999,2]
[360113791,1746553847911,-328.7,0.00019999,2]
[360113793,1746553847921,-450.0,0.00019999,2]
[360113795,1746553847931,-450.0,0.00019999,2]
[360113797,1746553847942,-539.93,0.00019999,2]
[360113799,1746553847952,-450.0,0.00019999,2]
[360113801,1746553847963,-450.0,0.00019999,2]
[360113804,1746553847973,-450.0,0.00019999,2]
[360113806,1746553847983,-450.0,0.00019999,2]
[360113808,1746553847992,-423.87206428,0.00019999,2]
[360113810,1746553848002,-559.4,0.00019999,2]
[360113811,1746553848011,-559.4,0.00019999,2]
[360113812,1746553848021,-559.4,0.00019999,2]
[360113814,1746553848031,-559.4,0.00019999,2]
[360113816,1746553848041,-559.4,0.00019999,2]
[360113818,1746553848050,-559.4,0.00019999,2]
[360113820,1746553848060,-559.4,0.00019999,2]
[360113822,1746553848070,-450.0,0.00019999,2]
[360113824,1746553848082,-559.4,0.00019999,2]
[360113826,1746553848092,-450.0,0.00019999,2]
[360113828,1746553848102,-559.4,0.00019999,2]
[360113830,1746553848112,-450.0,0.00019999,2]
[360113832,1746553848123,-559.4,0.00019999,2]
[360113834,1746553848132,-422.99918281,0.00019999,2]
[360113836,1746553848142,-559.4,0.00019999,2]
[360113838,1746553848153,-559.4,0.00019999,2]
[360113840,1746553848164,-559.4,0.00019999,2]
[360113842,1746553848173,-559.4,0.00019999,2]
[360113844,1746553848183,-559.4,0.00019999,2]
[360113846,1746553848194,-559.4,0.00019999,2]
[360113848,1746553848204,-559.4,0.00019999,2]
[360113850,1746553848214,-559.4,0.00019999,2]
[360113852,1746553848224,-559.4,0.00019999,2]
[360113854,1746553848234,-559.4,0.00019999,2]
[360113856,1746553848244,-559.52381898,0.00019999,2]
[360113858,1746553848254,-475.66,0.00019999,2]
[360113860,1746553848263,-450.0,0.00019999,2]
[360113862,1746553848273,-450.0,0.00019999,2]
[360113864,1746553848283,-450.0,0.00019999,2]
[360113866,1746553848293,-592.5,0.00019999,2]
[360113867,1746553848302,-532.67,0.00019999,2]
[360113868,1746553848312,-450.0,0.00019999,2]
[360113869,1746553848322,-450.0,0.00019999,2]
[360113870,1746553848331,-450.0,0.00019999,2]
[360113871,1746553848341,-201.99,0.00019999,2]
[360113872,1746553848351,-450.0,0.00019999,2]
[360113873,1746553848360,-583.73,0.00019999,2]
[360113874,1746553848370,-400.19,0.00019999,2]
[360113875,1746553848379,-450.0,0.00019999,2]
[360113876,1746553848389,-450.0,0.00019999,2]
[360113877,1746553848398,-450.0,0.00019999,2]
[360113878,1746553848408,-450.0,0.00019999,2]
[360113879,1746553848418,-316.95,0.00019999,2]
[360113880,1746553848428,-450.0,0.00019999,2]
[360113881,1746553848437,-450.0,0.00019999,2]
[360113883,1746553848447,-450.0,0.00019999,2]
[360113884,1746553848457,-450.0,0.00019999,2]
[360113885,1746553848466,-450.0,0.00019999,2]
[360113886,1746553848475,-451.9644759,0.00019999,2]
[360113888,1746553848484,-450.0,0.00019999,2]
[360113890,1746553848494,-450.0,0.00019999,2]
[360113892,1746553848504,-450.0,0.00019999,2]
[360113894,1746553848513,-450.0,0.00019999,2]
[360113896,1746553848523,-450.0,0.00019999,2]
[360113898,1746553848533,-450.0,0.00019999,2]
[360113901,1746553848543,-450.0,0.00019999,2]
[360113902,1746553848553,-450.0,0.00019999,2]
[360113905,1746553848562,-322.05980117,0.00019999,2]
[360113907,1746553848572,-450.0,0.00019999,2]
[360113909,1746553848582,-159.52,0.00019999,2]
[360113911,1746553848591,-450.0,0.00019999,2]
[360113912,1746553848601,-450.0,0.00019999,2]
[360113915,1746553848611,-450.0,0.00019999,2]
[360113917,1746553848621,-450.0,0.00019999,2]
[360113919,1746553848630,-450.0,0.00019999,2]
[360113920,1746553848640,-450.0,0.00019999,2]
[360113923,1746553848650,-450.0,0.00019999,2]
[360113925,1746553848660,-450.0,0.00019999,2]
[360113926,1746553848670,-450.0,0.00019999,2]
[360113928,1746553848679,-450.0,0.00019999,2]
[360113931,1746553848689,-450.0,0.00019999,2]
[360113933,1746553848700,-450.0,0.00019999,2]
[360113935,1746553848710,-450.0,0.00019999,2]
[360113937,1746553848720,-450.0,0.00019999,2]
[360113938,1746553848731,-346.0,0.00019999,2]
[360113941,1746553848741,-450.0,0.00019999,2]
[360113943,1746553848751,-450.0,0.00019999,2]
[360113945,1746553848761,-400.87,0.00019999,2]
[360113947,1746553848771,-594.7,0.00019999,2]
[360113949,1746553848781,-594.7,0.00019999,2]
[360113951,1746553848792,-594.7,0.00019999,2]
[360113953,1746553848801,-594.7,0.00019999,2]
[360113954,1746553848811,-594.7,0.00019999,2]
[360113957,1746553848821,-594.7,0.00019999,2]
[360113958,1746553848830,-594.7,0.00019999,2]
[360113961,1746553848840,-594.7,0.00019999,2]
[360113962,1746553848850,-594.7,0.00019999,2]
[360113965,1746553848860,-594.7,0.00019999,2]
[360113967,1746553848869,-594.7,0.00019999,2]
[360113969,1746553848879,-594.7,0.00019999,2]
[360113971,1746553848889,-594.7,0.00019999,2]
[360113973,1746553848898,-594.7,0.00019999,2]
[360113975,1746553848908,-594.7,0.00019999,2]
[360113977,1746553848917,-594.7,0.00019999,2]
[360113979,1746553848927,-594.7,0.00019999,2]
[360113980,1746553848938,-594.82,0.00019999,2]
[360113983,1746553848947,-450.0,0.00019999,2]
[360113985,1746553848957,-450.0,0.00019999,2]
[360113987,1746553848966,-450.0,0.00019999,2]
[360113989,1746553848976,-450.0,0.00019999,2]
[360113991,1746553848986,-450.0,0.00019999,2]
[360113993,1746553848996,-450.0,0.00019999,2]
[360113995,1746553849006,-450.0,0.00019999,2]
[360113997,1746553849015,-450.0,0.00019999,2]
[360113999,1746553849025,-450.0,0.00019999,2]
[360114001,1746553849035,-450.0,0.00019999,2]
[360114003,1746553849044,-450.0,0.00019999,2]
[360114005,1746553849054,-450.0,0.00019999,2]
[360114007,1746553849065,-450.0,0.00019999,2]
[360114009,1746553849075,-450.0,0.00019999,2]
[360114011,1746553849088,-450.0,0.00019999,2]
[360114013,1746553849098,-450.0,0.00019999,2]
[360114015,1746553849107,-450.0,0.00019999,2]
[360114017,1746553849118,-450.0,0.00019999,2]
[360114019,1746553849127,-450.0,0.00019999,2]
[360114021,1746553849138,-233.45,0.00019999,2]
[360114023,1746553849149,-450.0,0.00019999,2]
[360114026,1746553849163,-450.0,0.00019999,2]
[360114028,1746553849172,-450.0,0.00019999,2]
[360114030,1746553849182,-174.97664746,0.00019999,2]
[360114069,1746553849550,-275.02335254,0.00019999,2]
[360114071,1746553849560,-450.0,0.00019999,2]
[360114073,1746553849570,-747.77,0.00019999,2]
[360114075,1746553849580,-450.0,0.00019999,2]
[360114077,1746553849590,-747.77,0.00019999,2]
[360114079,1746553849599,-450.0,0.00019999,2]
[360114081,1746553849609,-747.77,0.00019999,2]
[360114083,1746553849618,-450.0,0.00019999,2]
[360114085,1746553849628,-747.77,0.00019999,2]
[360114087,1746553849637,-450.0,0.00019999,2]
[360114089,1746553849646,-747.77,0.00019999,2]
[360114091,1746553849655,-349.97648916,0.00019999,2]
[360114093,1746553849665,-747.77,0.00019999,2]
[360114095,1746553849674,-747.77,0.00019999,2]
[360114097,1746553849683,-351.60840381,0.00019999,2]
[360114099,1746553849696,-396.16159619,0.00019999,2]
[360114101,1746553849705,-747.77,0.00019999,2]
[360114103,1746553849715,-310.69090785,0.00019999,2]
[360114105,1746553849726,-437.07909215,0.00019999,2]
[360114107,1746553849735,-148.23241914,0.00019999,2]
[360114109,1746553849746,-479.67095188,0.00019999,2]
[360114111,1746553849758,-119.86662898,0.00019999,2]
[360114114,1746553849768,-457.18964464,0.00019999,2]
[360114118,1746553849801,-151.0,0.0001999,2]
[360114120,1746553849811,-290.58035536,0.00019999,2]
[360114122,1746553849820,-747.77,0.00019999,2]
[360114124,1746553849830,-747.77,0.00019999,2]
[360114126,1746553849839,-450.0,0.00019999,2]
[360114128,1746553849849,-747.77,0.00019999,2]
[360114130,1746553849859,-450.0,0.00019999,2]
[360114132,1746553849868,-450.0,0.00019999,2]
[360114134,1746553849878,-747.77,0.00019999,2]
[360114136,1746553849887,-450.0,0.00019999,2]
[360114138,1746553849896,-747.77,0.00019999,2]
[360114140,1746553849906,-450.0,0.00019999,2]
[360114142,1746553849915,-747.88999999,0.00019999,2]
[360114144,1746553849924,-450.0,0.00019999,2]
[360114146,1746553849934,-450.0,0.00019999,2]
[360114148,1746553849944,-450.0,0.00019999,2]
[360114150,1746553849953,-450.0,0.00019999,2]
[360114152,1746553849962,-450.0,0.00019999,2]
[360114154,1746553849972,-450.0,0.00019999,2]
[360114156,1746553849981,-450.0,0.00019999,2]
[360114158,1746553849991,-450.0,0.00019999,2]
[360114160,1746553850000,-450.0,0.00019999,2]
[360114162,1746553850010,-450.0,0.00019999,2]
[360114164,1746553850021,-222.52,0.00019999,2]
[360114166,1746553850030,-450.0,0.00019999,2]
[360114169,1746553850040,-450.0,0.00019999,2]
[360114171,1746553850049,-208.3636855,0.00019999,2]
[360114173,1746553850058,-450.0,0.00019999,2]
[360114175,1746553850067,-450.0,0.00019999,2]
[360114177,1746553850078,-450.0,0.00019999,2]
[360114179,1746553850089,-450.0,0.00019999,2]
[360114180,1746553850098,-450.0,0.00019999,2]
[360114182,1746553850107,-450.0,0.00019999,2]
[360114185,1746553850117,-450.0,0.00019999,2]
[360114187,1746553850129,-450.0,0.00019999,2]
[360114189,1746553850138,-450.0,0.00019999,2]
[360114191,1746553850147,-450.0,0.00019999,2]
[360114193,1746553850157,-450.0,0.00019999,2]
[360114195,1746553850166,-450.0,0.00019999,2]
[360114197,1746553850175,-450.0,0.00019999,2]
[360114198,1746553850184,-450.0,0.00019999,2]
[360114200,1746553850195,-450.0,0.00019999,2]
[360114203,1746553850205,-450.0,0.00019999,2]
[360114205,1746553850214,-450.0,0.00019999,2]
[360114207,1746553850224,-450.0,0.00019999,2]
[360114209,1746553850233,-450.0,0.00019999,2]
[360114211,1746553850242,-450.0,0.00019999,2]
[360114213,1746553850252,-305.5871,0.00019999,2]
[360114215,1746553850261,-604.49,0.00019999,2]
[360114217,1746553850270,-604.49,0.00019999,2]
[360114219,1746553850280,-604.49,0.00019999,2]
[360114221,1746553850290,-604.49,0.00019999,2]
[360114222,1746553850299,-604.49,0.00019999,2]
[360114224,1746553850309,-604.49,0.00019999,2]
[360114226,1746553850319,-604.49,0.00019999,2]
[360114228,1746553850329,-604.49,0.00019999,2]
[360114229,1746553850338,-604.49,0.00019999,2]
[360114230,1746553850347,-604.49,0.00019999,2]
[360114231,1746553850356,-604.49,0.00019999,2]
[360114232,1746553850366,-604.49,0.00019999,2]
[360114233,1746553850375,-604.49,0.00019999,2]
[360114234,1746553850383,-604.49,0.00019999,2]
[360114235,1746553850392,-604.49,0.00019999,2]
[360114236,1746553850402,-604.49,0.00019999,2]
[360114237,1746553850411,-604.49,0.00019999,2]
[360114238,1746553850420,-604.49,0.00019999,2]
[360114239,1746553850429,-604.57,0.00019999,2]
[360114241,1746553850438,-546.65,0.00019999,2]
[360114243,1746553850448,-546.65,0.00019999,2]
[360114245,1746553850457,-546.65,0.00019999,2]
[360114247,1746553850467,-546.65,0.00019999,2]
[360114248,1746553850476,-546.65,0.00019999,2]
[360114250,1746553850486,-546.65,0.00019999,2]
[360114252,1746553850495,-546.65,0.00019999,2]
[360114254,1746553850504,-450.0,0.00019999,2]
[360114256,1746553850513,-450.0,0.00019999,2]
[360114258,1746553850523,-450.0,0.00019999,2]
[360114260,1746553850532,-546.65,0.00019999,2]
[360114262,1746553850541,-450.0,0.00019999,2]
[360114264,1746553850551,-546.65,0.00019999,2]
[360114266,1746553850560,-450.0,0.00019999,2]
[360114269,1746553850570,-546.65,0.00019999,2]
[360114270,1746553850579,-450.0,0.00019999,2]
[360114271,1746553850589,-546.65,0.00019999,2]
[360114272,1746553850599,-450.0,0.00019999,2]
[360114273,1746553850608,-546.65,0.00019999,2]
[360114274,1746553850618,-450.0,0.00019999,2]
[360114275,1746553850627,-546.65,0.00019999,2]
[360114276,1746553850637,-450.0,0.00019999,2]
[360114277,1746553850646,-546.65,0.00019999,2]
[360114278,1746553850656,-546.65,0.00019999,2]
[360114279,1746553850665,-450.0,0.00019999,2]
[360114280,1746553850674,-450.0,0.00019999,2]
[360114281,1746553850684,-546.65,0.00019999,2]
[360114282,1746553850693,-450.0,0.00019999,2]
[360114283,1746553850703,-546.65,0.00019999,2]
[360114284,1746553850713,-450.0,0.00019999,2]
[360114285,1746553850724,-546.65,0.00019999,2]
[360114286,1746553850734,-234.47,0.00019999,2]
[360114287,1746553850744,-546.65,0.00019999,2]
[360114288,1746553850753,-546.65,0.00019999,2]
[360114289,1746553850763,-546.66,0.00019999,2]
[360114290,1746553850773,-273.37066052,0.0002,2]
[360114291,1746553850783,-54302.09686276,0.0002,2]
[360114292,1746553850869,-1280.1979861,0.00019891,2]
[360114293,1746553850881,-201.22748887,0.00019891,2]
[360114294,1746553850891,-2760.47533689,0.0002,2]
[360114295,1746553850936,-350.0,0.0002,2]
[360114296,1746553850950,-39699.64525605,0.0002,2]
[360114297,1746553850961,-5995.50257779,0.0002,2]
[360114298,1746553850972,-7558.41776409,0.0002,2]
[360114299,1746553850983,-1164.00608359,0.0002,2]
[360114300,1746553850994,-5073.86187,0.0002,2]
[360114301,1746553851005,-387.31414544,0.0002,2]
[360114302,1746553851016,-916.83806527,0.0002,2]
[360114310,1746553889061,150.0,0.00019064,2]
[360114311,1746553957259,23900.0,0.00019064,2]
[360114312,1746554116610,158.32,0.00016712,2]
[360114313,1746554169035,314.46027854,0.00030137,120]
[360114314,1746554180806,200.0,0.00019501,2]
[360114315,1746554235805,200.0,0.00018946,2]
[360114316,1746554427937,166.92,0.00018913,2]
[360114317,1746554538533,152.0,0.0003,30]
[360114318,1746554550819,567.17594262,0.00019014,2]
[360114319,1746554550947,567.17594262,0.00019068,2]
[360114320,1746554551078,567.17594262,0.00019151,2]
[360114321,1746554551202,567.17594262,0.00019233,2]
[360114322,1746554551355,567.17594262,0.00019315,2]
[360114323,1746554551838,567.17594262,0.0001937,2]
[360114324,1746554552194,567.17594262,0.00019452,2]
[360114325,1746554639717,250.0,0.00019064,2]
[360114326,1746554731525,150.0,0.00018,2]
[360114327,1746554833227,1175.04,0.00016973,2]
[360114328,1746554833432,1175.04,0.00019237,2]
[360114329,1746554859195,171.69,0.00018895,2]
[360114330,1746554978110,6005.12345173,0.0003,30]
[360114331,1746554996430,3021.47,0.00018879,2]
[360114338,1746555031523,-411.64114999,0.00019534,2]
[360114340,1746555031731,-155.53479263,0.00019534,2]
[360114341,1746555031743,-250.0,0.00019555,2]
[360114342,1746555031753,-567.17594262,0.00019616,2]
[360114343,1746555031763,-151.0,0.00019636,2]
[360114344,1746555031772,-168.07,0.00019636,2]
[360114345,1746555031782,-567.17594262,0.00019699,2]
[360114346,1746555031791,-941.41739622,0.000197,2]
[360114347,1746555031803,-58.58260378,0.000197,2]
[360114348,1746555031812,-264.0592,0.00019709,2]
[360114349,1746555031822,-731.9689,0.0001971,2]
[360114350,1746555031831,-932.67738946,0.00019722,2]
[360114352,1746555031840,-567.17594262,0.00019753,2]
[360114354,1746555031850,-226.4678,0.00019791,2]
[360114356,1746555031859,-932.67738946,0.00019792,2]
[360114358,1746555031868,-207.4,0.00019798,2]
[360114360,1746555031878,-300.0,0.00019807,2]
[360114362,1746555031888,-1200.0,0.00019807,2]
[360114364,1746555031897,-300.0,0.00019807,2]
[360114366,1746555031906,-600.0,0.00019808,2]
[360114367,1746555031915,-450.0,0.00019809,2]
[360114369,1746555031925,-450.0,0.00019809,2]
[360114371,1746555031934,-198.0406957,0.00019809,2]
[360114373,1746555031943,-450.0,0.00019809,2]
[360114375,1746555031952,-450.0,0.00019809,2]
[360114377,1746555031963,-567.17594262,0.00019836,2]
[360114379,1746555031972,-1083.16205035,0.0001984,2]
[360114381,1746555031983,-798.32798818,0.0001984,2]
[360114384,1746555031995,-118.50996147,0.0001984,2]
[360114386,1746555032004,-200.0,0.0001984,2]
[360114389,1746555032014,-4532.50308372,0.00019891,2]
[360114392,1746555032025,-452.3697946,0.00019891,2]
[360114395,1746555032036,-1335.61561137,0.00019891,2]
[360114399,1746555032047,-658.56281653,0.00019891,2]
[360114402,1746555032057,-1448.36731794,0.00019891,2]
[360114456,1746555037745,-474.19459788,0.00019891,2]
[360114457,1746555037902,-879.85197213,0.00019891,2]
[360114458,1746555037914,-2718.53480583,0.00019891,2]
[360114459,1746555037924,-566.22471739,0.00019891,2]
[360114616,1746555039741,-231.77528261,0.00019891,2]
[360114618,1746555039751,-93.86692305,0.00019891,2]
[360114634,1746555039903,-531.13307695,0.00019891,2]
[360114636,1746555039913,-1243.0,0.00019891,2]
[360114638,1746555039922,-916.0,0.00019891,2]
[360114639,1746555039931,-551.0,0.00019891,2]
[360114641,1746555039941,-1452.0,0.00019891,2]
[360114644,1746555039952,-582.0,0.00019891,2]
[360114645,1746555039961,-866.93820977,0.00019897,2]
[360114647,1746555039970,-866.93820969,0.00019897,2]
[360114649,1746555039979,-866.93820969,0.00019898,2]
[360114651,1746555039989,-866.93820969,0.00019898,2]
[360114653,1746555039999,-866.93820969,0.00019898,2]
[360114655,1746555040008,-866.93820969,0.00019899,2]
[360114657,1746555040017,-500.0,0.00019899,2]
[360114659,1746555040027,-500.0,0.00019899,2]
[360114661,1746555040036,-500.0,0.00019899,2]
[360114663,1746555040045,-500.0,0.00019899,2]
[360114665,1746555040055,-500.0,0.00019899,2]
[360114667,1746555040064,-500.0,0.00019899,2]
[360114669,1746555040073,-500.0,0.00019899,2]
[360114671,1746555040083,-500.0,0.00019899,2]
[360114673,1746555040093,-500.0,0.00019899,2]
[360114675,1746555040104,-500.0,0.00019899,2]
[360114677,1746555040114,-500.0,0.00019899,2]
[360114679,1746555040123,-500.0,0.00019899,2]
[360114681,1746555040133,-500.0,0.00019899,2]
[360114683,1746555040142,-500.0,0.00019899,2]
[360114685,1746555040151,-500.0,0.00019899,2]
[360114687,1746555040161,-500.0,0.00019899,2]
[360114689,1746555040171,-500.0,0.00019899,2]
[360114691,1746555040180,-500.0,0.00019899,2]
[360114692,1746555040190,-500.0,0.00019899,2]
[360114694,1746555040199,-500.0,0.00019899,2]
[360114696,1746555040208,-500.0,0.00019899,2]
[360114698,1746555040217,-500.0,0.00019899,2]
[360114700,1746555040227,-500.0,0.00019899,2]
[360114702,1746555040236,-500.0,0.00019899,2]
[360114704,1746555040245,-500.0,0.00019899,2]
[360114706,1746555040255,-500.0,0.00019899,2]
[360114708,1746555040265,-500.0,0.00019899,2]
[360114710,1746555040274,-500.0,0.00019899,2]
[360114712,1746555040284,-500.0,0.00019899,2]
[360114714,1746555040293,-500.0,0.00019899,2]
[360114716,1746555040303,-500.0,0.00019899,2]
[360114718,1746555040312,-500.0,0.00019899,2]
[360114720,1746555040321,-500.0,0.00019899,2]
[360114722,1746555040330,-500.0,0.00019899,2]
[360114724,1746555040339,-500.0,0.00019899,2]
[360114726,1746555040349,-500.0,0.00019899,2]
[360114728,1746555040358,-500.0,0.00019899,2]
[360114730,1746555040367,-500.0,0.00019899,2]
[360114732,1746555040376,-500.0,0.00019899,2]
[360114734,1746555040385,-500.0,0.00019899,2]
[360114736,1746555040395,-500.0,0.00019899,2]
[360114739,1746555040404,-500.0,0.00019899,2]
[360114740,1746555040413,-500.0,0.00019899,2]
[360114744,1746555040423,-500.0,0.00019899,2]
[360114746,1746555040433,-500.0,0.00019899,2]
[360114748,1746555040443,-435.71287167,0.00019899,2]
[360114750,1746555040452,-500.0,0.00019899,2]
[360114751,1746555040461,-711.63789276,0.00019899,2]
[360114753,1746555040470,-711.63789276,0.00019899,2]
[360114755,1746555040479,-711.63789276,0.00019899,2]
[360114757,1746555040489,-711.63789276,0.00019899,2]
[360114759,1746555040498,-711.63789276,0.00019899,2]
[360114761,1746555040508,-711.63789276,0.00019899,2]
[360114763,1746555040517,-711.63789276,0.00019899,2]
[360114765,1746555040526,-711.63789276,0.00019899,2]
[360114767,1746555040535,-711.63789276,0.00019899,2]
[360114769,1746555040544,-711.63789276,0.00019899,2]
[360114771,1746555040554,-711.63789276,0.00019899,2]
[360114773,1746555040563,-711.63789276,0.00019899,2]
[360114775,1746555040572,-711.63789276,0.00019899,2]
[360114777,1746555040582,-711.63789276,0.00019899,2]
[360114779,1746555040591,-711.63789276,0.00019899,2]
[360114781,1746555040600,-711.63789276,0.00019899,2]
[360114783,1746555040609,-711.63789276,0.00019899,2]
[360114785,1746555040619,-711.63789276,0.00019899,2]
[360114787,1746555040628,-711.63789276,0.00019899,2]
[360114789,1746555040637,-711.63789276,0.00019899,2]
[360114791,1746555040646,-711.63789276,0.00019899,2]
[360114793,1746555040655,-711.63789276,0.00019899,2]
[360114795,1746555040665,-711.63789276,0.00019899,2]
[360114797,1746555040673,-711.63789276,0.00019899,2]
[360114798,1746555040683,-711.63789276,0.00019899,2]
[360114801,1746555040693,-711.63789276,0.00019899,2]
[360114803,1746555040703,-711.63789276,0.00019899,2]
[360114804,1746555040712,-711.63789276,0.00019899,2]
[360114806,1746555040724,-711.63789276,0.00019899,2]
[360114808,1746555040737,-711.63789276,0.00019899,2]
[360114810,1746555040747,-711.63789276,0.00019899,2]
[360114812,1746555040757,-711.63789276,0.00019899,2]
[360114814,1746555040768,-698.69902199,0.00019899,2]
[360114816,1746555040778,-698.69902199,0.00019899,2]
[360114818,1746555040788,-698.69902199,0.00019899,2]
[360114820,1746555040798,-698.69902199,0.00019899,2]
[360114822,1746555040808,-698.69902199,0.00019899,2]
[360114824,1746555040819,-698.69902199,0.00019899,2]
[360114826,1746555040829,-698.69902199,0.00019899,2]
[360114828,1746555040838,-698.69902199,0.00019899,2]
[360114830,1746555040848,-698.69902199,0.00019899,2]
[360114832,1746555040857,-698.69902199,0.00019899,2]
[360114834,1746555040868,-698.69902199,0.00019899,2]
[360114836,1746555040877,-450.0,0.00019899,2]
[360114838,1746555040886,-1766.92745819,0.00019899,2]
[360114840,1746555040895,-866.93820969,0.00019899,2]
[360114842,1746555040904,-826.82010863,0.00019899,2]
[360114844,1746555040917,-336.08664991,0.00019899,2]
[360115008,1746555042635,-335.6599995,0.00019899,2]
[360115020,1746555042689,-268.36070012,0.00019899,2]
[360115023,1746555042698,-119.52829984,0.00019899,2]
[360115026,1746555042709,-252.3807417,0.00019899,2]
[360115029,1746555042722,-1395.01841662,0.00019899,2]
[360115032,1746555042732,-1766.92745816,0.00019899,2]
[360115035,1746555042743,-866.93820969,0.00019899,2]
[360115038,1746555042752,-1766.92745816,0.00019899,2]
[360115041,1746555042761,-1766.92745816,0.000199,2]
[360115044,1746555042770,-1766.92745816,0.000199,2]
[360115047,1746555042780,-866.93820969,0.000199,2]
[360115050,1746555042789,-4854.1401,0.000199,2]
[360115053,1746555042799,-1766.92745816,0.000199,2]
[360115054,1746555042809,-1766.92745816,0.000199,2]
[360115056,1746555042818,-970.5811752,0.000199,2]
[360115058,1746555042828,-169.42859159,0.000199,2]
[360115060,1746555042837,-211.25339233,0.000199,2]
[360115062,1746555042846,-956.87291518,0.000199,2]
[360115075,1746555042957,-3730.22250696,0.000199,2]
[360116393,1746555091769,-406.0283,0.00019899,2]
[360116394,1746555091797,-8971.432,0.00019899,2]
[360116395,1746555091824,-600.0,0.00019899,2]